fUST/lending_fUST_20240813
["ID","MTS","AMOUNT","RATE_DAILY","PERIOD"]
[334707191,1723491052845,-261.67607505,0.00014993,2]
[334707192,1723491052856,-500.0,0.00014993,2]
[334707193,1723491052866,-500.0,0.00014993,2]
[334707194,1723491052876,-500.0,0.00014993,2]
[334707195,1723491052886,-492.17475896,0.00014993,2]
[334707196,1723491162565,221.2,0.00027,120]
[334707203,1723491277154,494.73852133,9.999e-05,2]
[334707220,1723491445286,1500.0,0.0001212,2]
[334707228,1723491483835,301.29579535,9.999e-05,2]
[334707229,1723491613671,165.71411466,9.999e-05,2]
[334707230,1723491616192,250.0,0.00013994,2]
[334707231,1723491628176,14042.96417897,0.0001212,2]
[334707232,1723491643146,14513.29330898,0.0001212,2]
[334707233,1723491667626,196.66577865,0.0001212,2]
[334707234,1723491675175,165.71411466,0.0001212,2]
[334707235,1723491727501,721.29,0.00025237,60]
[334707236,1723491727532,678.01,0.00025237,60]
[334707237,1723491727564,133.63,0.00025237,60]
[334707238,1723491774303,520.01905669,9.999e-05,2]
[334707240,1723491882999,850.24651816,0.0001212,2]
[334707253,1723492062557,369.25442779,9.999e-05,2]
[334707254,1723492110218,247.478552,0.00013795,2]
[334707255,1723492110336,247.478552,0.00013833,2]
[334707256,1723492110571,247.478552,0.00013871,2]
[334707257,1723492110814,247.478552,0.00013909,2]
[334707258,1723492111013,247.478552,0.00013946,2]
[334707259,1723492111391,247.478552,0.00013984,2]
[334707260,1723492138682,494.73852133,9.999e-05,2]
[334707261,1723492139384,15585.96011986,0.00013922,2]
[334707262,1723492159159,-247.478552,0.00014022,2]
[334707263,1723492159182,-247.478552,0.0001406,2]
[334707264,1723492159206,-247.478552,0.00014098,2]
[334707265,1723492159229,-121.1206319,0.00014136,2]
[334707277,1723492219769,190.85060772,9.999e-05,2]
[334707318,1723492238275,-126.3579201,0.00014136,2]
[334707319,1723492238285,-247.478552,0.00014173,2]
[334707320,1723492238297,-247.478552,0.00014211,2]
[334707321,1723492238307,-162.098468,0.00014247,2]
[334707322,1723492238316,-247.478552,0.00014249,2]
[334707323,1723492238326,-247.478552,0.00014287,2]
[334707324,1723492238336,-247.478552,0.00014325,2]
[334707325,1723492238345,-247.478552,0.00014363,2]
[334707326,1723492238355,-247.478552,0.00014401,2]
[334707327,1723492238363,-247.478552,0.00014438,2]
[334707328,1723492238372,-247.478552,0.00014476,2]
[334707329,1723492238382,-153.0,0.000145,2]
[334707330,1723492238391,-153.0,0.000145,2]
[334707331,1723492238401,-247.478552,0.00014514,2]
[334707332,1723492238410,-153.0,0.000146,2]
[334707333,1723492238420,-300.0,0.00014779,2]
[334707334,1723492238429,-300.0,0.00014779,2]
[334707335,1723492238439,-7112.05864072,0.0001478,2]
[334707337,1723492238449,-2350.34105163,0.00014789,2]
[334707339,1723492238459,-2000.0,0.00014792,2]
[334707342,1723492238470,-2350.34105162,0.00014815,2]
[334707343,1723492238484,-2350.34105162,0.00014841,2]
[334707345,1723492238493,-392.07266965,0.00014866,2]
[334707346,1723492238503,-500.0,0.00014866,2]
[334707347,1723492238513,-500.0,0.00014866,2]
[334707348,1723492238522,-500.0,0.00014866,2]
[334707349,1723492238689,-500.0,0.00014866,2]
[334707350,1723492238700,-500.0,0.00014866,2]
[334707351,1723492238710,-500.0,0.00014866,2]
[334707352,1723492238719,-500.0,0.00014866,2]
[334707353,1723492238728,-500.0,0.00014866,2]
[334707354,1723492238738,-500.0,0.00014866,2]
[334707355,1723492238747,-500.0,0.00014866,2]
[334707356,1723492238757,-500.0,0.00014866,2]
[334707357,1723492238766,-500.0,0.00014866,2]
[334707358,1723492238777,-500.0,0.00014866,2]
[334707359,1723492238786,-500.0,0.00014866,2]
[334707360,1723492238795,-500.0,0.00014866,2]
[334707361,1723492238805,-500.0,0.00014866,2]
[334707362,1723492238814,-500.0,0.00014866,2]
[334707363,1723492238824,-500.0,0.00014866,2]
[334707364,1723492238833,-500.0,0.00014866,2]
[334707365,1723492238843,-500.0,0.00014866,2]
[334707366,1723492238853,-304.85992224,0.00014866,2]
[334707367,1723492238862,-500.0,0.00014866,2]
[334707368,1723492238872,-500.0,0.00014866,2]
[334707369,1723492238881,-500.0,0.00014866,2]
[334707370,1723492238890,-500.0,0.00014866,2]
[334707371,1723492238900,-500.0,0.00014866,2]
[334707372,1723492238909,-500.0,0.00014866,2]
[334707373,1723492238919,-500.0,0.00014866,2]
[334707374,1723492238928,-500.0,0.00014866,2]
[334707375,1723492238938,-500.0,0.00014866,2]
[334707376,1723492238947,-500.0,0.00014866,2]
[334707377,1723492238956,-500.0,0.00014866,2]
[334707378,1723492238966,-500.0,0.00014866,2]
[334707379,1723492238975,-500.0,0.00014866,2]
[334707380,1723492238985,-500.0,0.00014866,2]
[334707381,1723492238995,-500.0,0.00014866,2]
[334707382,1723492239005,-500.0,0.00014866,2]
[334707383,1723492239014,-500.0,0.00014866,2]
[334707384,1723492239023,-500.0,0.00014866,2]
[334707385,1723492239033,-500.0,0.00014866,2]
[334707386,1723492239043,-500.0,0.00014866,2]
[334707387,1723492239053,-500.0,0.00014866,2]
[334707388,1723492239062,-500.0,0.00014866,2]
[334707389,1723492239072,-500.0,0.00014866,2]
[334707390,1723492239082,-2350.34105162,0.00014867,2]
[334707391,1723492239091,-500.0,0.00014869,2]
[334707392,1723492239101,-202.89785665,0.00014869,2]
[334707393,1723492239110,-500.0,0.00014869,2]
[334707394,1723492239120,-500.0,0.00014869,2]
[334707395,1723492239129,-500.0,0.00014869,2]
[334707396,1723492239139,-500.0,0.00014869,2]
[334707397,1723492239149,-500.0,0.00014869,2]
[334707398,1723492239158,-500.0,0.00014869,2]
[334707399,1723492239185,-500.0,0.00014869,2]
[334707400,1723492239195,-500.0,0.00014869,2]
[334707401,1723492239204,-500.0,0.00014869,2]
[334707402,1723492239214,-500.0,0.00014869,2]
[334707403,1723492239224,-500.0,0.00014869,2]
[334707404,1723492239234,-207.18391425,0.00014869,2]
[334707405,1723492239244,-1296.43,0.0001487,2]
[334707406,1723492239254,-808.31,0.0001487,2]
[334707407,1723492239265,-86313.1920141,0.00014871,2]
[334707408,1723492239275,-607.05619012,0.0001488,2]
[334707409,1723492239285,-500.0,0.0001488,2]
[334707410,1723492239295,-500.0,0.0001488,2]
[334707411,1723492239305,-7704.99,0.0001488,2]
[334707412,1723492239314,-831.03,0.0001488,2]
[334707413,1723492239324,-1345.96,0.0001488,2]
[334707414,1723492239337,-86313.1920141,0.00014881,2]
[334707415,1723492239347,-207.24713946,0.00014881,2]
[334707416,1723492239358,-500.0,0.00014881,2]
[334707417,1723492239367,-500.0,0.00014881,2]
[334707418,1723492239377,-500.0,0.00014881,2]
[334707419,1723492239386,-500.0,0.00014881,2]
[334707420,1723492239396,-500.0,0.00014881,2]
[334707421,1723492239406,-508.3166345,0.00014881,2]
[334707422,1723492239416,-500.0,0.00014881,2]
[334707423,1723492239425,-500.0,0.00014881,2]
[334707424,1723492239435,-908.4,0.00014881,2]
[334707425,1723492239445,-500.0,0.00014881,2]
[334707426,1723492239455,-500.0,0.00014881,2]
[334707427,1723492239465,-500.0,0.00014881,2]
[334707428,1723492239479,-500.0,0.00014881,2]
[334707429,1723492239490,-4656.86,0.00014881,2]
[334707430,1723492239500,-4604.57,0.00014881,2]
[334707431,1723492239511,-1490.8,0.00014881,2]
[334707432,1723492239520,-500.0,0.00014881,2]
[334707433,1723492239530,-1308.24,0.00014881,2]
[334707434,1723492239540,-500.0,0.00014881,2]
[334707435,1723492239552,-1693.84,0.00014881,2]
[334707436,1723492239563,-579.89,0.00014881,2]
[334707437,1723492239573,-500.0,0.00014881,2]
[334707438,1723492239583,-500.0,0.00014881,2]
[334707439,1723492239593,-500.0,0.00014881,2]
[334707440,1723492239603,-525.16,0.00014881,2]
[334707441,1723492239613,-500.0,0.00014881,2]
[334707442,1723492239624,-500.0,0.00014881,2]
[334707443,1723492239634,-1709.87,0.00014881,2]
[334707444,1723492239644,-500.0,0.00014881,2]
[334707445,1723492239654,-500.0,0.00014881,2]
[334707446,1723492239663,-2706.17,0.00014881,2]
[334707447,1723492239672,-2706.17,0.00014881,2]
[334707448,1723492239695,-1779.47,0.00014881,2]
[334707450,1723492239705,-500.0,0.00014881,2]
[334707451,1723492239714,-500.0,0.00014881,2]
[334707452,1723492239724,-500.0,0.00014881,2]
[334707453,1723492239734,-1119.96,0.00014881,2]
[334707454,1723492239744,-500.0,0.00014881,2]
[334707456,1723492239755,-505.81028186,0.00014881,2]
[334707457,1723492239765,-500.0,0.00014881,2]
[334707458,1723492239774,-500.0,0.00014881,2]
[334707459,1723492239784,-500.0,0.00014881,2]
[334707461,1723492239794,-9024.5,0.00014881,2]
[334707463,1723492239804,-504.51658871,0.00014881,2]
[334707465,1723492239814,-31702.41698847,0.00014883,2]
[334707467,1723492239824,-2706.17,0.00014886,2]
[334707469,1723492239834,-17604.48391999,0.00014889,2]
[334707471,1723492239844,-500.0,0.00014889,2]
[334707473,1723492239854,-500.0,0.00014889,2]
[334707475,1723492239864,-500.0,0.00014889,2]
[334707477,1723492239875,-500.0,0.00014889,2]
[334707478,1723492239885,-615.69,0.00014889,2]
[334707479,1723492239895,-1048.65,0.00014889,2]
[334707480,1723492239904,-500.0,0.00014889,2]
[334707481,1723492239914,-501.68433035,0.00014889,2]
[334707482,1723492239923,-500.0,0.00014889,2]
[334707483,1723492239934,-1707.4,0.00014889,2]
[334707484,1723492239944,-1126.9,0.00014889,2]
[334707485,1723492239953,-504.02234705,0.00014889,2]
[334707486,1723492239963,-1647.65,0.00014889,2]
[334707487,1723492239973,-546.69468098,0.00014889,2]
[334707488,1723492239983,-500.0,0.00014889,2]
[334707489,1723492239993,-500.0,0.00014889,2]
[334707490,1723492240003,-500.0,0.00014889,2]
[334707491,1723492240013,-716.82,0.00014889,2]
[334707492,1723492240023,-504.17183432,0.00014889,2]
[334707493,1723492240034,-500.0,0.00014889,2]
[334707494,1723492240044,-500.0,0.00014889,2]
[334707495,1723492240054,-500.0,0.00014889,2]
[334707496,1723492240065,-500.0,0.00014889,2]
[334707497,1723492240075,-1711.83,0.00014889,2]
[334707498,1723492240085,-1041.47,0.00014889,2]
[334707499,1723492240095,-500.0,0.00014889,2]
[334707500,1723492240105,-506.98815353,0.00014889,2]
[334707501,1723492240115,-500.0,0.00014889,2]
[334707502,1723492240125,-723.36,0.00014889,2]
[334707503,1723492240135,-500.0,0.00014889,2]
[334707504,1723492240144,-1595.43,0.00014889,2]
[334707505,1723492240154,-542.99,0.00014889,2]
[334707506,1723492240164,-194.48696844,0.00014889,2]
[334707507,1723492240174,-301.74654116,0.00014889,2]
[334707508,1723492240197,-2706.17,0.0001489,2]
[334707509,1723492240207,-500.0,0.00014891,2]
[334707510,1723492240217,-500.0,0.00014891,2]
[334707511,1723492240227,-785.16,0.00014891,2]
[334707512,1723492240236,-500.0,0.00014891,2]
[334707513,1723492240245,-500.0,0.00014891,2]
[334707514,1723492240255,-698.27,0.00014891,2]
[334707515,1723492240265,-848.35,0.00014891,2]
[334707516,1723492240275,-500.0,0.00014891,2]
[334707517,1723492240285,-500.0,0.00014891,2]
[334707518,1723492240295,-969.22,0.00014891,2]
[334707519,1723492240306,-500.0,0.00014891,2]
[334707520,1723492240316,-500.0,0.00014891,2]
[334707521,1723492240325,-500.0,0.00014891,2]
[334707522,1723492240335,-779.11,0.00014891,2]
[334707523,1723492240345,-500.0,0.00014891,2]
[334707524,1723492240355,-504.90175956,0.00014891,2]
[334707525,1723492240365,-500.0,0.00014891,2]
[334707526,1723492240376,-500.0,0.00014891,2]
[334707527,1723492240386,-2854.81,0.00014891,2]
[334707528,1723492240396,-1348.52,0.00014891,2]
[334707529,1723492240406,-1602.06,0.00014891,2]
[334707530,1723492240416,-500.0,0.00014891,2]
[334707531,1723492240426,-1330.09,0.00014891,2]
[334707532,1723492240449,-994.94,0.00014891,2]
[334707533,1723492240459,-500.0,0.00014891,2]
[334707534,1723492240469,-500.0,0.00014891,2]
[334707535,1723492240483,-502.59732915,0.00014891,2]
[334707536,1723492240492,-500.0,0.00014891,2]
[334707537,1723492240502,-1026.19,0.00014891,2]
[334707538,1723492240512,-4909.24,0.00014891,2]
[334707539,1723492240523,-500.0,0.00014891,2]
[334707540,1723492240534,-869.24,0.00014891,2]
[334707541,1723492240544,-500.0,0.00014891,2]
[334707542,1723492240554,-500.0,0.00014891,2]
[334707543,1723492240564,-500.0,0.00014891,2]
[334707544,1723492240574,-827.47,0.00014891,2]
[334707545,1723492240585,-500.0,0.00014891,2]
[334707546,1723492240594,-500.0,0.00014891,2]
[334707547,1723492240604,-853.83,0.00014891,2]
[334707548,1723492240614,-500.0,0.00014891,2]
[334707549,1723492240624,-500.0,0.00014891,2]
[334707550,1723492240634,-500.0,0.00014891,2]
[334707552,1723492240644,-500.0,0.00014891,2]
[334707553,1723492240655,-2682.08,0.00014892,2]
[334707554,1723492240665,-3879.29,0.00014892,2]
[334707555,1723492240675,-615.78,0.00014892,2]
[334707556,1723492240700,-501.44447813,0.00014892,2]
[334707558,1723492240710,-500.0,0.00014892,2]
[334707560,1723492240720,-1228.82,0.00014892,2]
[334707561,1723492240730,-500.0,0.00014892,2]
[334707563,1723492240740,-500.0,0.00014892,2]
[334707564,1723492240753,-500.0,0.00014892,2]
[334707565,1723492240763,-570.92,0.00014892,2]
[334707566,1723492240773,-500.0,0.00014892,2]
[334707567,1723492240783,-550.7,0.00014892,2]
[334707568,1723492240792,-500.0,0.00014892,2]
[334707569,1723492240803,-1100.91,0.00014892,2]
[334707570,1723492240815,-2125.39,0.00014892,2]
[334707571,1723492240826,-3435.91,0.00014892,2]
[334707572,1723492240836,-500.0,0.00014892,2]
[334707573,1723492240846,-1698.59,0.00014892,2]
[334707574,1723492240856,-2706.17,0.00014892,2]
[334707575,1723492240867,-500.0,0.00014892,2]
[334707576,1723492240876,-1069.68,0.00014892,2]
[334707577,1723492240886,-500.0,0.00014892,2]
[334707578,1723492240897,-500.0,0.00014892,2]
[334707579,1723492240907,-2350.34105162,0.00014893,2]
[334707580,1723492240917,-1893.35332055,0.00014894,2]
[334707581,1723492240930,-57262.00067819,0.00014972,2]
[334707582,1723492241117,-966.0,0.00014972,2]
[334707583,1723492241131,-28085.19133591,0.00014972,2]
[334707584,1723492241141,-2706.17,0.00014982,2]
[334707585,1723492241151,-2706.17,0.00014982,2]
[334707586,1723492241161,-2706.17,0.00014982,2]
[334707587,1723492241170,-2706.17,0.00014982,2]
[334707588,1723492241188,-59468.63497426,0.00014983,2]
[334707589,1723492241202,-26844.55703984,0.00014983,2]
[334707590,1723492241211,-2479.50680894,0.00014983,2]
[334707591,1723492242459,-226.66319106,0.00014983,2]
[334707592,1723492242470,-2706.17,0.00014983,2]
[334707593,1723492242483,-86313.1920141,0.00014984,2]
[334707594,1723492242493,-153.0,0.00014986,2]
[334707595,1723492242503,-153.0,0.00014986,2]
[334707596,1723492242513,-306.0,0.00014986,2]
[334707597,1723492242524,-2706.17,0.00014992,2]
[334707598,1723492242534,-500.0,0.00014993,2]
[334707599,1723492242546,-509.72787759,0.00014993,2]
[334707600,1723492242558,-500.0,0.00014993,2]
[334707601,1723492242568,-503.16228762,0.00014993,2]
[334707602,1723492242579,-500.0,0.00014993,2]
[334707603,1723492242589,-500.0,0.00014993,2]
[334707604,1723492242599,-938.24,0.00014993,2]
[334707605,1723492242609,-68.68471027,0.00014993,2]
[334707696,1723492289820,806.88929846,9.999e-05,2]
[334707697,1723492382709,897.92379833,9.999e-05,2]
[334707699,1723492419212,481.30220974,9.999e-05,3]
[334707700,1723492440973,155.18167037,9.999e-05,2]
[334707701,1723492470419,265.99065928,0.0001212,2]
[334707702,1723492502719,2280.6099092,0.0001212,3]
[334707703,1723492509854,180.6866484,0.0001212,2]
[334707704,1723492582024,156.87111249,9.999e-05,2]
[334707705,1723492637889,694.80973434,9.999e-05,2]
[334707706,1723492656173,157.699688,0.0001395,2]
[334707707,1723492656431,157.699688,0.00013995,2]
[334707708,1723492673413,664.75593459,0.0001212,2]
[334707713,1723493145649,157.699688,0.00013606,2]
[334707714,1723493145859,157.699688,0.00013657,2]
[334707715,1723493146096,157.699688,0.00013707,2]
[334707716,1723493146333,157.699688,0.00013758,2]
[334707717,1723493146549,157.699688,0.00013809,2]
[334707718,1723493146981,157.699688,0.00013859,2]
[334707719,1723493147244,157.699688,0.0001391,2]
[334707720,1723493147507,157.699688,0.0001396,2]
[334707721,1723493238742,288.06763284,0.0001,2]
[334707722,1723493301328,405.81829933,0.00012121,2]
[334707723,1723493315871,601.42805892,9.999e-05,2]
[334707754,1723493432632,-157.699688,0.00014011,2]
[334707755,1723493432642,-157.699688,0.00014062,2]
[334707756,1723493432652,-157.699688,0.00014112,2]
[334707757,1723493432661,-157.699688,0.00014163,2]
[334707758,1723493432672,-157.699688,0.00014214,2]
[334707759,1723493432824,-162.098468,0.00014247,2]
[334707760,1723493432834,-159.009422,0.00014247,2]
[334707761,1723493432844,-157.699688,0.00014264,2]
[334707762,1723493432855,-157.699688,0.00014315,2]
[334707763,1723493432866,-153.0,0.000145,2]
[334707764,1723493432876,-153.0,0.000145,2]
[334707765,1723493432886,-153.0,0.000145,2]
[334707766,1723493432896,-153.0,0.000145,2]
[334707767,1723493432905,-153.0,0.000145,2]
[334707768,1723493432917,-306.0,0.000145,2]
[334707769,1723493432927,-306.0,0.000145,2]
[334707770,1723493432937,-300.0,0.00014542,2]
[334707771,1723493432948,-300.0,0.00014542,2]
[334707772,1723493432958,-5322.59176007,0.00014543,2]
[334707773,1723493432968,-372.4634256,0.00014575,2]
[334707774,1723493432978,-193.42012825,0.00014661,2]
[334707775,1723493432987,-193.42012825,0.00014663,2]
[334707776,1723493432997,-193.42012825,0.00014666,2]
[334707777,1723493433006,-193.42012825,0.00014668,2]
[334707778,1723493433015,-6861.98982028,0.00014669,2]
[334707779,1723493433025,-193.42012825,0.0001467,2]
[334707780,1723493433036,-2280.6099092,0.00014691,3]
[334707781,1723493433046,-1333.66,0.00014758,2]
[334707782,1723493433055,-200.30066653,0.00014758,2]
[334707783,1723493433065,-500.0,0.00014758,2]
[334707784,1723493433075,-539.11872828,0.00014758,2]
[334707785,1723493433085,-539.11872828,0.00014758,2]
[334707786,1723493433094,-351.387244,0.00014758,2]
[334707787,1723493433104,-539.11872828,0.00014758,2]
[334707788,1723493433113,-487.46151057,0.00014758,2]
[334707789,1723493433124,-539.11872828,0.00014758,2]
[334707790,1723493433134,-539.11872828,0.00014758,2]
[334707791,1723493433144,-539.11872828,0.00014758,2]
[334707792,1723493433154,-539.11872828,0.00014758,2]
[334707793,1723493433166,-539.11872828,0.00014758,2]
[334707794,1723493433176,-539.11872828,0.00014758,2]
[334707795,1723493433186,-539.11872828,0.00014758,2]
[334707796,1723493433196,-11581.40341083,0.0001476,2]
[334707857,1723493438645,-539.11872828,0.00014758,2]
[334707859,1723493438655,-539.11872828,0.00014758,2]
[334707861,1723493438669,-539.11872828,0.00014758,2]
[334707863,1723493438679,-539.11872828,0.00014758,2]
[334707865,1723493438689,-539.11872828,0.00014758,2]
[334707867,1723493438698,-500.0,0.00014758,2]
[334707869,1723493438708,-500.0,0.00014758,2]
[334707871,1723493438718,-500.0,0.00014758,2]
[334707873,1723493438729,-511.14859023,0.00014758,2]
[334707875,1723493438741,-500.0,0.00014758,2]
[334707877,1723493438751,-500.0,0.00014758,2]
[334707880,1723493438762,-500.0,0.00014758,2]
[334707882,1723493438772,-500.0,0.00014758,2]
[334707884,1723493438782,-539.11872828,0.00014758,2]
[334707886,1723493438791,-500.0,0.00014758,2]
[334707888,1723493438803,-539.11872828,0.00014758,2]
[334707890,1723493438813,-500.0,0.00014758,2]
[334707892,1723493438825,-500.0,0.00014758,2]
[334707894,1723493438835,-500.0,0.00014758,2]
[334707896,1723493438845,-500.0,0.00014758,2]
[334707898,1723493438855,-500.0,0.00014758,2]
[334707900,1723493438865,-500.0,0.00014758,2]
[334707902,1723493438875,-500.0,0.00014758,2]
[334707904,1723493438885,-500.0,0.00014758,2]
[334707906,1723493438895,-539.11872828,0.00014758,2]
[334707908,1723493438906,-500.0,0.00014758,2]
[334707910,1723493438916,-500.0,0.00014758,2]
[334707912,1723493438926,-500.0,0.00014758,2]
[334707914,1723493438936,-500.0,0.00014758,2]
[334707917,1723493438946,-500.0,0.00014758,2]
[334707919,1723493438956,-500.0,0.00014758,2]
[334707921,1723493438966,-500.0,0.00014758,2]
[334707923,1723493438976,-500.0,0.00014758,2]
[334707925,1723493438985,-500.0,0.00014758,2]
[334707927,1723493438996,-500.0,0.00014758,2]
[334707929,1723493439006,-500.0,0.00014758,2]
[334707931,1723493439017,-500.0,0.00014758,2]
[334707933,1723493439028,-500.0,0.00014758,2]
[334707936,1723493439038,-500.0,0.00014758,2]
[334707938,1723493439048,-500.0,0.00014758,2]
[334707940,1723493439059,-500.0,0.00014758,2]
[334707942,1723493439069,-500.0,0.00014758,2]
[334707944,1723493439078,-500.0,0.00014758,2]
[334707946,1723493439088,-500.0,0.00014758,2]
[334707948,1723493439098,-500.0,0.00014758,2]
[334707950,1723493439107,-546.69309258,0.00014758,2]
[334707952,1723493439117,-500.0,0.00014758,2]
[334707954,1723493439127,-500.0,0.00014758,2]
[334707956,1723493439136,-500.0,0.00014758,2]
[334707958,1723493439146,-500.0,0.00014758,2]
[334707961,1723493439155,-110073.17094917,0.0001476,2]
[334707963,1723493439165,-2124.11950992,0.00014761,2]
[334707964,1723493439176,-63272.93179088,0.00014761,2]
[334707966,1723493439185,-243309.148721,0.00014761,2]
[334707968,1723493439194,-500.0,0.00014769,2]
[334707970,1723493439204,-2377.98,0.00014769,2]
[334707972,1723493439214,-500.0,0.00014769,2]
[334707974,1723493439224,-8181.28,0.00014769,2]
[334707977,1723493439234,-892.34,0.00014769,2]
[334707979,1723493439244,-1446.3,0.00014769,2]
[334707981,1723493439254,-969.44,0.0001477,2]
[334707983,1723493439266,-500.0,0.0001477,2]
[334707985,1723493439276,-4918.39,0.0001477,2]
[334707987,1723493439286,-1537.59,0.0001477,2]
[334707989,1723493439295,-1065.07,0.0001477,2]
[334707991,1723493439305,-4804.94,0.0001477,2]
[334707993,1723493439315,-1748.84,0.0001477,2]
[334707994,1723493439324,-500.0,0.0001477,2]
[334707995,1723493439335,-545.71,0.0001477,2]
[334707996,1723493439347,-2305.06,0.0001477,2]
[334707998,1723493439360,-2305.06,0.0001477,2]
[334707999,1723493439370,-500.0,0.0001477,2]
[334708000,1723493439379,-1771.65,0.0001477,2]
[334708001,1723493439389,-1843.78,0.0001477,2]
[334708002,1723493439399,-1159.94,0.0001477,2]
[334708003,1723493439408,-500.0,0.0001477,2]
[334708004,1723493439419,-505.30193001,0.0001477,2]
[334708005,1723493439429,-735.25,0.0001477,2]
[334708006,1723493439439,-88888.0,0.00014771,2]
[334708007,1723493439449,-150.112233,0.000148,2]
[334708008,1723493439458,-150.112233,0.000148,2]
[334708009,1723493439467,-150.112235,0.000148,2]
[334708010,1723493439477,-121654.57436,0.00014845,2]
[334708011,1723493439487,-2305.06,0.00014854,2]
[334708012,1723493439496,-2305.06,0.00014854,2]
[334708013,1723493439507,-2305.06,0.00014854,2]
[334708014,1723493439517,-2305.06,0.00014858,2]
[334708015,1723493439527,-2305.06,0.00014858,2]
[334708016,1723493439536,-2305.06,0.00014858,2]
[334708017,1723493439546,-2305.06,0.00014859,2]
[334708018,1723493439556,-2305.06,0.00014859,2]
[334708019,1723493439566,-2305.06,0.00014859,2]
[334708020,1723493439576,-2305.06,0.00014859,2]
[334708021,1723493439586,-2305.06,0.00014859,2]
[334708022,1723493439595,-2305.06,0.0001486,2]
[334708023,1723493439605,-2305.06,0.0001486,2]
[334708024,1723493439615,-2305.06,0.0001486,2]
[334708025,1723493439624,-2305.06,0.00014862,2]
[334708026,1723493439634,-2305.06,0.00014864,2]
[334708027,1723493439644,-2305.06,0.00014864,2]
[334708028,1723493439654,-809.95,0.00014865,2]
[334708029,1723493439664,-500.0,0.00014865,2]
[334708030,1723493439676,-500.0,0.00014865,2]
[334708031,1723493439685,-500.0,0.00014865,2]
[334708032,1723493439694,-500.0,0.00014865,2]
[334708033,1723493439704,-500.0,0.00014865,2]
[334708034,1723493439714,-500.0,0.00014865,2]
[334708035,1723493439723,-500.0,0.00014865,2]
[334708036,1723493439733,-500.0,0.00014865,2]
[334708037,1723493439743,-500.0,0.00014865,2]
[334708038,1723493439753,-500.0,0.00014865,2]
[334708039,1723493439762,-778.41,0.00014865,2]
[334708040,1723493439772,-500.0,0.00014865,2]
[334708041,1723493439781,-500.0,0.00014865,2]
[334708042,1723493439791,-500.0,0.00014865,2]
[334708043,1723493439800,-500.0,0.00014865,2]
[334708044,1723493439812,-500.0,0.00014865,2]
[334708045,1723493439823,-500.0,0.00014865,2]
[334708046,1723493439837,-500.0,0.00014865,2]
[334708047,1723493439848,-500.0,0.00014865,2]
[334708048,1723493439859,-692.2,0.00014865,2]
[334708049,1723493439871,-500.0,0.00014865,2]
[334708050,1723493439881,-674.19,0.00014865,2]
[334708051,1723493439890,-841.02,0.00014865,2]
[334708052,1723493439900,-500.0,0.00014865,2]
[334708053,1723493439911,-500.0,0.00014865,2]
[334708054,1723493439924,-500.0,0.00014865,2]
[334708055,1723493439934,-500.0,0.00014865,2]
[334708056,1723493439945,-500.0,0.00014865,2]
[334708057,1723493439957,-500.0,0.00014865,2]
[334708059,1723493439968,-500.0,0.00014865,2]
[334708061,1723493439978,-1002.34,0.00014865,2]